bitfinex/quotes_BTCUSD_20220303
["timestamp","ask_amount","ask_price","bid_price","bid_amount"]
[1646349380756,0.16045713,42586.0,42574.0,0.403]
[1646349380953,0.20649062,42583.0,42574.0,0.403]
[1646349381356,0.20649062,42583.0,42572.0,0.1483275]
[1646349381558,0.359086,42582.0,42571.0,0.2781]
[1646349381755,0.0707,42581.0,42571.0,0.2781]
[1646349381954,0.382586,42580.0,42571.0,0.2781]
[1646349382155,0.17125982,42577.0,42572.0,0.004]
[1646349383055,0.19773446,42574.0,42572.0,0.004]
[1646349383259,0.19773446,42574.0,42567.0,0.1483275]
[1646349383658,0.27620165,42573.0,42567.0,0.1483275]
[1646349384058,0.27620165,42573.0,42567.0,0.1533275]
[1646349385400,0.27620165,42573.0,42567.0,0.1483275]
[1646349385599,0.27620165,42573.0,42566.0,0.1]
[1646349385803,0.27620165,42573.0,42565.0,0.4483275]
[1646349386908,0.19401314,42570.0,42565.0,0.4483275]
[1646349387101,0.19401314,42570.0,42565.0,0.1483275]
[1646349387505,0.27620165,42573.0,42565.0,0.1483275]
[1646349388137,0.27620165,42573.0,42565.0,0.006]
[1646349388741,0.18109032,42574.0,42565.0,0.006]
[1646349389344,0.18109032,42574.0,42564.0,0.2099512]
[1646349389538,0.18109032,42574.0,42562.0,0.488033]
[1646349389739,0.18109032,42574.0,42565.0,0.1483275]
[1646349389940,0.40929515,42574.0,42565.0,0.1483275]
[1646349390140,0.18109032,42574.0,42565.0,0.1483275]
[1646349390341,0.18109032,42574.0,42562.0,0.494033]
[1646349390541,0.18109032,42574.0,42566.0,0.16834742]
[1646349390742,0.18109032,42574.0,42566.0,0.31667492]
[1646349391343,0.18109032,42574.0,42566.0,0.1483275]
[1646349391542,0.18109032,42574.0,42562.0,0.488033]
[1646349391785,0.18109032,42574.0,42564.0,0.1483275]
[1646349391985,0.18109032,42574.0,42565.0,0.3]
[1646349392387,0.18109032,42574.0,42565.0,0.49711617]
[1646349392685,0.18109032,42574.0,42565.0,0.3]
[1646349393086,0.2109956,42575.0,42565.0,0.3]
[1646349393687,0.3690361,42575.0,42565.0,0.3]
[1646349393887,0.2109956,42575.0,42564.0,0.1483275]
[1646349394088,0.2109956,42575.0,42565.0,0.006]
[1646349395089,0.19960439,42572.0,42565.0,0.006]
[1646349395534,0.2109956,42575.0,42564.0,0.1483275]
[1646349396137,0.2109956,42575.0,42564.0,0.1533275]
[1646349396535,0.2109956,42575.0,42564.0,0.30810439]
[1646349396935,0.2109956,42575.0,42564.0,0.1533275]
[1646349397635,0.2109956,42575.0,42564.0,0.1483275]
[1646349397835,0.37940014,42575.0,42565.0,0.15675661]
[1646349398035,0.17713589,42577.0,42565.0,0.15675661]
[1646349399286,0.39371362,42577.0,42566.0,0.15541873]
[1646349399490,0.01174,42580.0,42568.0,0.14824064]
[1646349399688,0.01174,42583.0,42568.0,0.14824064]
[1646349399888,0.53397652,42584.0,42568.0,0.14824064]
[1646349399889,0.24571652,42584.0,42568.0,0.14824064]
[1646349400094,0.13384,42584.0,42569.0,0.22421202]
[1646349400295,0.13384,42584.0,42574.0,0.14824064]
[1646349400296,0.1221,42584.0,42574.0,0.14824064]
[1646349400490,0.18207714,42585.0,42574.0,0.14824064]
[1646349401088,0.38669556,42585.0,42575.0,0.1874336]
[1646349401293,0.38669556,42585.0,42574.0,0.14824064]
[1646349401488,0.38669556,42585.0,42572.0,0.22487133]
[1646349401688,0.28205972,42582.0,42571.0,0.058756]
[1646349401888,0.28205972,42582.0,42571.0,0.24536605]
[1646349402088,0.28205972,42582.0,42572.0,0.003]
[1646349402291,0.18207714,42585.0,42574.0,0.14824064]
[1646349403344,0.18207714,42585.0,42575.0,0.16798268]
[1646349403542,0.18207714,42585.0,42574.0,0.14824064]
[1646349403747,0.18207714,42585.0,42567.0,0.26364064]
[1646349403748,0.0235,42581.0,42567.0,0.26364064]
[1646349403947,0.3235,42581.0,42567.0,0.26364064]
[1646349404145,0.3235,42581.0,42569.0,0.2464]
[1646349404544,0.21716224,42577.0,42569.0,0.2464]
[1646349404744,0.22505171,42571.0,42569.0,0.2464]
[1646349404945,0.22505171,42571.0,42569.0,0.002]
[1646349405345,0.22505171,42571.0,42567.0,0.14824064]
[1646349406146,0.22505171,42571.0,42567.0,0.15424064]
[1646349407401,0.22505171,42571.0,42567.0,0.14824064]
[1646349408201,0.22505171,42571.0,42567.0,0.15424064]
[1646349409403,0.22505171,42571.0,42567.0,0.14824064]
[1646349410102,0.22505171,42571.0,42567.0,0.15424064]
[1646349411845,0.22505171,42571.0,42567.0,0.006]
[1646349412040,0.22505171,42571.0,42564.0,0.14824064]
[1646349412341,0.22505171,42571.0,42562.0,0.006]
[1646349412541,0.17807876,42566.0,42562.0,0.006]
[1646349413140,0.0472,42565.0,42562.0,0.006]
[1646349413342,0.659086,42564.0,42559.0,0.1941]
[1646349413541,0.659086,42564.0,42558.0,0.2638]
[1646349413542,0.59971368,42563.0,42558.0,0.2638]
[1646349413742,0.19951058,42556.0,42549.0,0.34319887]
[1646349413941,0.55516774,42562.0,42558.0,0.32093487]
[1646349414195,0.3,42561.0,42558.0,0.32093487]
[1646349414592,0.16112752,42559.0,42558.0,0.32093487]
[1646349415795,0.21958174,42562.0,42558.0,0.32093487]
[1646349416195,0.21958174,42562.0,42558.0,0.32193487]
[1646349417400,0.24062768,42563.0,42558.0,0.32093487]
[1646349418254,0.24062768,42563.0,42558.0,0.32193487]
[1646349418454,0.40785965,42563.0,42558.0,0.32193487]
[1646349419154,0.24062768,42563.0,42558.0,0.32193487]
[1646349419356,0.28594109,42564.0,42558.0,0.32093487]
[1646349419357,0.0472,42564.0,42558.0,0.32093487]
[1646349420158,0.0472,42564.0,42559.0,0.18478537]
[1646349420356,0.0472,42564.0,42558.0,0.32293487]
[1646349421987,0.0472,42564.0,42558.0,0.32093487]
[1646349422189,0.0472,42564.0,42558.0,0.32293487]
[1646349423487,0.0472,42564.0,42558.0,0.32093487]
[1646349423687,0.0422,42564.0,42558.0,0.32093487]
[1646349424288,0.0442,42564.0,42558.0,0.32093487]
[1646349424489,0.2403124,42559.0,42558.0,0.32093487]
[1646349425292,0.9228984,42559.0,42558.0,0.32093487]
[1646349425548,1.09281321,42559.0,42558.0,0.32093487]
[1646349425749,1.14001321,42559.0,42558.0,0.32093487]
[1646349426247,1.21834951,42559.0,42558.0,0.32093487]
[1646349426754,0.18843416,42548.0,42543.0,0.31175]
[1646349426948,0.18843416,42548.0,42543.0,0.01175]
[1646349427147,0.25988141,42547.0,42543.0,0.01175]
[1646349428146,0.16300267,42548.0,42543.0,0.01475]
[1646349428346,0.16300267,42548.0,42543.0,0.17993253]
[1646349428545,0.16300267,42548.0,42543.0,0.01475]
[1646349429686,0.16300267,42548.0,42539.0,0.47021513]
[1646349429687,0.16300267,42548.0,42540.0,0.18556882]
[1646349429890,0.0235,42553.0,42540.0,0.18556882]
[1646349430089,0.0235,42553.0,42541.0,0.44824064]
[1646349430290,0.22910081,42551.0,42543.0,0.003]
[1646349431188,0.18836098,42549.0,42543.0,0.003]
[1646349431388,0.18836098,42549.0,42541.0,0.3]
[1646349431893,0.0235,42553.0,42541.0,0.3]
[1646349432089,0.0707,42554.0,42542.0,0.058797]
[1646349432291,0.1672,42557.0,42542.0,0.158797]
[1646349432494,0.1672,42557.0,42547.0,0.16980117]
[1646349432692,0.1341,42570.0,42547.0,0.16980117]
[1646349432693,0.01175,42565.0,42548.0,0.3]
[1646349432963,0.20569244,42564.0,42551.0,0.22001184]
[1646349433150,0.21976429,42565.0,42551.0,0.22001184]
[1646349433151,0.21976429,42565.0,42552.0,0.3]
[1646349433349,0.21976429,42565.0,42558.0,0.18555971]
[1646349433550,0.23150429,42565.0,42558.0,0.18555971]
[1646349434050,0.21976429,42565.0,42558.0,0.18555971]
[1646349434350,0.21976429,42565.0,42558.0,0.18855971]
[1646349435552,0.21976429,42565.0,42558.0,0.18555971]
[1646349436153,0.01174,42567.0,42559.0,0.3]
[1646349436353,0.01174,42574.0,42559.0,0.3]
[1646349436554,0.13878365,42576.0,42559.0,0.44824064]
[1646349436790,0.13878365,42577.0,42559.0,0.44824064]
[1646349436991,0.01174,42576.0,42559.0,0.44824064]
[1646349437196,0.1987471,42571.0,42562.0,0.17207901]
[1646349437389,0.1987471,42571.0,42563.0,0.3]
[1646349438191,0.1987471,42571.0,42564.0,0.15642238]
[1646349438791,0.1987471,42571.0,42563.0,0.303]
[1646349438992,0.1987471,42571.0,42563.0,0.003]
[1646349439590,0.1987471,42571.0,42561.0,0.24824064]
[1646349439790,0.1987471,42571.0,42561.0,0.54824064]
[1646349440442,0.1987471,42571.0,42561.0,0.1]
[1646349440839,0.1987471,42571.0,42560.0,0.3]
[1646349441040,0.1987471,42571.0,42562.0,0.1582203]
[1646349441439,0.1987471,42571.0,42561.0,0.30069166]
[1646349442241,0.1987471,42571.0,42561.0,0.30469166]
[1646349442442,0.1987471,42571.0,42564.0,0.1646374]
[1646349443243,0.1987471,42571.0,42561.0,0.30469166]
[1646349443442,0.1987471,42571.0,42561.0,0.4529323]
[1646349443642,0.1987471,42571.0,42561.0,0.4489323]
[1646349443946,0.22781108,42567.0,42561.0,0.24824064]
[1646349444194,0.1987471,42571.0,42561.0,0.14824064]
[1646349444393,0.1987471,42571.0,42561.0,0.15224064]
[1646349444594,0.1987471,42571.0,42561.0,0.004]
[1646349444994,0.19542742,42564.0,42561.0,0.004]
[1646349445596,0.19535373,42564.0,42559.0,0.14824064]
[1646349446596,0.19535373,42564.0,42562.0,0.16101785]
[1646349446794,0.19535373,42564.0,42560.0,0.3]
[1646349446995,0.19535373,42564.0,42560.0,0.4]
[1646349447597,0.19535373,42564.0,42561.0,0.14824064]
[1646349447798,0.19535373,42564.0,42558.0,0.18248826]
[1646349448042,0.19535373,42564.0,42556.0,0.1195]
[1646349448249,0.19535373,42564.0,42556.0,0.004]
[1646349448842,0.20502078,42563.0,42556.0,0.004]
[1646349449142,0.24791185,42561.0,42556.0,0.004]
[1646349449545,0.24791185,42561.0,42553.0,0.1]
[1646349450749,0.20502078,42563.0,42553.0,0.1]
[1646349450942,0.19535373,42564.0,42553.0,0.1]
[1646349452001,0.40621796,42564.0,42553.0,0.1]
[1646349452204,0.19535373,42564.0,42553.0,0.1]
[1646349452402,0.19535373,42564.0,42553.0,0.106]
[1646349452605,0.19535373,42564.0,42553.0,0.006]
[1646349452803,0.20919508,42562.0,42553.0,0.006]
[1646349453603,0.20919508,42562.0,42552.0,0.64115685]
[1646349454005,0.19535373,42564.0,42552.0,0.64115685]
[1646349454407,0.19535373,42564.0,42552.0,0.64815685]
[1646349455641,0.41476693,42564.0,42552.0,0.64115685]
[1646349456344,0.41476693,42564.0,42552.0,0.64815685]
[1646349457544,0.41476693,42564.0,42552.0,0.64115685]
[1646349458345,0.41476693,42564.0,42552.0,0.64815685]
[1646349459692,0.41476693,42564.0,42552.0,0.64115685]
[1646349460295,0.41476693,42564.0,42552.0,0.64715685]
[1646349460795,0.19535373,42564.0,42556.0,0.19884197]
[1646349460997,0.01174,42568.0,42557.0,0.3]
[1646349461202,0.15051896,42575.0,42558.0,0.14824064]
[1646349461398,0.01174,42575.0,42558.0,0.27014064]
[1646349461597,0.01174,42576.0,42558.0,0.27014064]
[1646349461797,0.20944075,42570.0,42558.0,0.27014064]
[1646349461997,0.20944075,42570.0,42558.0,0.18067]
[1646349462201,0.20944075,42570.0,42559.0,0.14824064]
[1646349462400,0.20944075,42570.0,42560.0,0.3]
[1646349462946,0.35141594,42572.0,42564.0,0.18687671]
[1646349463144,0.19691113,42572.0,42564.0,0.18687671]
[1646349463746,0.1188,42577.0,42564.0,0.48687671]
[1646349464145,0.1188,42577.0,42572.0,0.20762022]
[1646349464348,0.22342502,42580.0,42570.0,0.058757]
[1646349464545,0.22342502,42580.0,42567.0,0.3]
[1646349464744,0.21422655,42577.0,42567.0,0.3]
[1646349465347,0.21422655,42577.0,42567.0,0.4728377]
[1646349468398,0.21422655,42577.0,42567.0,0.4778377]
[1646349469699,0.21422655,42577.0,42567.0,0.4728377]
[1646349470446,0.1205,42582.0,42570.0,0.15566656]
[1646349470645,0.359086,42587.0,42570.0,0.15566656]
[1646349470844,0.29465681,42590.0,42571.0,0.44824064]
[1646349470845,0.01174,42586.0,42571.0,0.44824064]
[1646349471047,0.1187,42590.0,42571.0,0.56384064]
[1646349471048,0.01174,42589.0,42571.0,0.56384064]
[1646349471244,0.16161662,42586.0,42571.0,0.56384064]
[1646349471444,0.21461576,42582.0,42571.0,0.56384064]
[1646349471846,0.18172717,42585.0,42577.0,0.21044666]
[1646349472544,0.16538937,42582.0,42577.0,0.21044666]
[1646349472747,0.16538937,42582.0,42572.0,0.85]
[1646349473344,0.27360394,42578.0,42572.0,0.85]
[1646349473747,0.21405516,42575.0,42572.0,0.85]
[1646349474198,0.16538937,42582.0,42572.0,0.85]
[1646349474396,0.16538937,42582.0,42572.0,0.003]
[1646349474397,0.18888937,42582.0,42572.0,0.003]
[1646349474598,0.359086,42579.0,42572.0,0.003]
[1646349474797,0.382586,42577.0,42572.0,0.003]
[1646349474997,0.359086,42575.0,42572.0,0.003]
[1646349475199,0.62991499,42575.0,42572.0,0.003]
[1646349475398,0.21724154,42574.0,42572.0,0.003]
[1646349475598,0.359086,42573.0,42564.0,0.19723466]
[1646349475798,0.3973814,42574.0,42564.0,0.19723466]
[1646349476098,0.21724154,42574.0,42564.0,0.19723466]
[1646349476298,0.21724154,42574.0,42564.0,0.20023466]
[1646349476904,0.2167561,42573.0,42565.0,0.19005311]
[1646349477101,0.2167561,42573.0,42564.0,0.20023466]
[1646349477601,0.2167561,42573.0,42564.0,0.19723466]
[1646349479845,0.21724154,42574.0,42564.0,0.19723466]
[1646349480443,0.21724154,42574.0,42564.0,0.20023466]
[1646349480846,0.17313761,42573.0,42564.0,0.20023466]
[1646349481445,0.21724154,42574.0,42564.0,0.20023466]
[1646349481694,0.21724154,42574.0,42564.0,0.19723466]
[1646349482494,0.15786757,42573.0,42564.0,0.20023466]
[1646349482695,0.21724154,42574.0,42564.0,0.20023466]
[1646349483296,0.03524,42578.0,42564.0,0.20023466]
[1646349483496,0.01174,42578.0,42565.0,0.3]
[1646349483697,0.03524,42578.0,42565.0,0.3]
[1646349484096,0.01174,42578.0,42565.0,0.3]
[1646349484297,0.1126,42583.0,42575.0,0.19160051]
[1646349484298,0.17971419,42582.0,42575.0,0.19160051]
[1646349484503,0.60184535,42581.0,42575.0,0.19160051]
[1646349485299,0.1818196,42579.0,42575.0,0.19160051]
[1646349485542,0.24275935,42581.0,42575.0,0.19160051]
[1646349485745,0.01174,42585.0,42575.0,0.19160051]
[1646349485943,0.01174,42586.0,42575.0,0.19160051]
[1646349486148,0.1212,42590.0,42576.0,0.3]
[1646349486149,0.01174,42588.0,42576.0,0.3]
[1646349486344,0.1817724,42593.0,42576.0,0.3]
[1646349486345,0.001,42585.0,42576.0,0.3]
[1646349486646,0.001,42585.0,42582.0,0.17508747]
[1646349486843,0.001,42585.0,42582.0,0.47508747]
[1646349487648,0.15655664,42596.0,42583.0,0.19451218]
[1646349487843,0.20441308,42593.0,42583.0,0.19451218]
[1646349488244,0.20441308,42593.0,42582.0,0.59238747]
[1646349488444,0.20441308,42593.0,42583.0,0.003]
[1646349489396,0.24818643,42591.0,42583.0,0.003]
[1646349489599,0.24818643,42591.0,42582.0,0.59238747]
[1646349489798,0.24818643,42591.0,42582.0,0.29238747]
[1646349490199,0.20968762,42587.0,42582.0,0.29238747]
[1646349490398,0.20968762,42587.0,42582.0,0.17508747]
[1646349490799,0.21646987,42586.0,42580.0,0.1]
[1646349491200,0.21646987,42586.0,42579.0,0.14824064]
[1646349494048,0.21646987,42586.0,42580.0,0.21850265]
[1646349495047,0.21646987,42586.0,42580.0,0.51850265]
[1646349495246,0.24818643,42591.0,42580.0,0.51850265]
[1646349495447,0.1234,42594.0,42580.0,0.51850265]
[1646349495847,0.01174,42597.0,42580.0,0.5183915]
[1646349496048,0.01174,42597.0,42581.0,0.1211]
[1646349496448,0.21742115,42594.0,42587.0,0.16859205]
[1646349496694,0.359086,42593.0,42587.0,0.16859205]
[1646349497598,0.20516351,42592.0,42587.0,0.16859205]
[1646349497995,0.359086,42591.0,42587.0,0.16859205]
[1646349498596,0.359086,42593.0,42587.0,0.16859205]
[1646349498796,0.20763512,42591.0,42587.0,0.16859205]
[1646349499596,0.20763512,42591.0,42581.0,0.1211]
[1646349499597,0.359086,42590.0,42581.0,0.1211]
[1646349499797,0.20763512,42591.0,42581.0,0.1206]
[1646349500443,0.20763512,42591.0,42581.0,0.1266]
[1646349500643,0.20763512,42591.0,42581.0,0.30502973]
[1646349500843,0.20763512,42591.0,42581.0,0.1266]
[1646349501444,0.15590191,42585.0,42581.0,0.1266]
[1646349501644,0.15590191,42585.0,42581.0,0.1206]
[1646349501846,0.15590191,42585.0,42580.0,0.21958595]
[1646349502248,0.15590191,42585.0,42579.0,0.14824064]
[1646349502447,0.15590191,42585.0,42580.0,0.004]
[1646349503647,0.15590191,42585.0,42575.0,0.11173]
[1646349504048,0.23113512,42591.0,42575.0,0.01173]
[1646349504049,0.15666939,42578.0,42575.0,0.01173]
[1646349504301,0.51575539,42578.0,42575.0,0.01173]
[1646349504496,0.359086,42577.0,42575.0,0.01173]
[1646349504795,0.15666939,42578.0,42575.0,0.01173]
[1646349504995,0.359086,42577.0,42575.0,0.01173]
[1646349505197,0.59239979,42577.0,42575.0,0.01173]
[1646349505399,0.59239979,42577.0,42570.0,0.1666364]
[1646349505597,0.23331379,42577.0,42570.0,0.1606364]
[1646349506396,0.23331379,42577.0,42570.0,0.1646364]
[1646349506596,0.0472,42579.0,42570.0,0.1646364]
[1646349507799,0.0472,42579.0,42570.0,0.1606364]
[1646349507800,0.28780113,42578.0,42570.0,0.1606364]
[1646349508856,0.0472,42579.0,42570.0,0.1606364]
[1646349509255,0.0472,42579.0,42571.0,0.21558858]
[1646349509456,0.0472,42579.0,42570.0,0.1606364]
[1646349510057,0.26665057,42579.0,42570.0,0.1606364]
[1646349510356,0.0472,42579.0,42570.0,0.1606364]
[1646349510558,0.0472,42579.0,42570.0,0.1636364]
[1646349510959,0.2047183,42581.0,42570.0,0.1636364]
[1646349511158,0.15498818,42585.0,42577.0,0.37761312]
[1646349511360,0.01174,42584.0,42578.0,0.3]
[1646349511561,0.01174,42589.0,42578.0,0.3]
[1646349511799,0.01174,42593.0,42578.0,0.3]
[1646349511998,0.359086,42594.0,42578.0,0.3]
[1646349512197,0.01174,42595.0,42578.0,0.3]
[1646349512198,0.16931542,42590.0,42578.0,0.3]
[1646349512398,0.25884189,42589.0,42579.0,0.21011032]
[1646349512601,0.24710189,42589.0,42579.0,0.21011032]
[1646349512798,0.24710189,42589.0,42578.0,0.303]
[1646349513204,0.24710189,42589.0,42578.0,0.003]
[1646349513401,0.18341311,42583.0,42578.0,0.003]
[1646349513899,0.21858595,42579.0,42578.0,0.003]
[1646349514299,0.21858595,42579.0,42572.0,0.15755695]
[1646349514498,0.21858595,42579.0,42573.0,0.003]
[1646349514703,0.18172959,42574.0,42573.0,0.003]
[1646349515753,0.18172959,42574.0,42568.0,0.24824064]
[1646349517451,0.18172959,42574.0,42568.0,0.14824064]
[1646349518654,0.18172959,42574.0,42568.0,0.44824064]
[1646349519050,0.18172959,42574.0,42568.0,0.14824064]
[1646349519297,0.18172959,42574.0,42568.0,0.44824064]
[1646349519493,0.0707,42582.0,42570.0,0.17250587]
[1646349519694,0.0707,42582.0,42571.0,0.3]
[1646349520295,0.0472,42582.0,42571.0,0.3]
[1646349520495,0.0472,42582.0,42575.0,0.21051358]
[1646349520695,0.28853718,42581.0,42575.0,0.21051358]
[1646349521094,0.28853718,42581.0,42571.0,0.304]
[1646349521695,0.28853718,42581.0,42571.0,0.3]
[1646349522295,0.28853718,42581.0,42573.0,0.18959532]
[1646349522494,0.50809489,42581.0,42573.0,0.18959532]
[1646349522696,0.28853718,42581.0,42573.0,0.18959532]
[1646349524345,0.1657917,42583.0,42574.0,0.3]
[1646349524544,0.1657917,42583.0,42573.0,0.19359532]
[1646349524744,0.1657917,42583.0,42574.0,0.3]
[1646349525144,0.20938175,42584.0,42574.0,0.3]
[1646349525343,0.23393762,42583.0,42574.0,0.3]
[1646349525743,0.20938175,42584.0,42574.0,0.3]
[1646349526545,0.20938175,42584.0,42574.0,0.303]
[1646349526996,0.23849127,42582.0,42574.0,0.003]
[1646349527397,0.23849127,42582.0,42574.0,0.303]
[1646349527798,0.21915044,42586.0,42580.0,0.18117017]
[1646349527799,0.359086,42585.0,42580.0,0.18117017]
[1646349527998,0.21915044,42586.0,42580.0,0.18117017]
[1646349528201,0.21915044,42586.0,42574.0,0.1206]
[1646349529300,0.25203753,42576.0,42574.0,0.1206]
[1646349529502,0.17012192,42579.0,42571.0,0.40726418]
[1646349529701,0.17012192,42579.0,42571.0,0.70726418]
[1646349530301,0.3638274,42579.0,42571.0,0.70726418]
[1646349530547,0.3638274,42579.0,42571.0,0.71326418]
[1646349530745,0.21409388,42578.0,42571.0,0.71326418]
[1646349530945,0.21409388,42578.0,42571.0,0.47306418]
[1646349532348,0.21409388,42578.0,42571.0,0.46706418]
[1646349532749,0.19401494,42574.0,42571.0,0.46706418]
[1646349532948,0.21409388,42578.0,42571.0,0.46706418]
[1646349533353,0.21409388,42578.0,42571.0,0.3]
[1646349533550,0.21409388,42578.0,42568.0,0.44824064]
[1646349533752,0.0235,42586.0,42568.0,0.54824064]
[1646349533956,0.0235,42585.0,42577.0,0.21102576]
[1646349534198,0.0235,42585.0,42572.0,0.14824064]
[1646349534598,0.03524,42589.0,42583.0,0.21661128]
[1646349534799,0.23386485,42587.0,42583.0,0.21661128]
[1646349535397,0.1620636,42585.0,42583.0,0.21661128]
[1646349535697,0.23386485,42587.0,42575.0,0.1204]
[1646349535698,0.23386485,42587.0,42576.0,0.3]
[1646349535898,0.16250598,42596.0,42576.0,0.3]
[1646349535899,0.01174,42593.0,42576.0,0.3]
[1646349536100,0.11930598,42596.0,42584.0,0.14824064]
[1646349536101,0.01174,42596.0,42584.0,0.14824064]
[1646349536298,0.13383,42597.0,42585.0,0.3]
[1646349536500,0.01173,42597.0,42585.0,0.3]
[1646349536699,0.16956057,42596.0,42590.0,0.19798477]
[1646349536897,0.0736258,42595.0,42590.0,0.19798477]
[1646349537702,0.0736258,42595.0,42581.0,0.1999]
[1646349537944,0.0736258,42595.0,42581.0,0.2999]
[1646349538144,0.0736258,42595.0,42583.0,0.058742]
[1646349538348,0.0736258,42595.0,42584.0,0.14824064]
[1646349538946,0.20971452,42590.0,42586.0,0.16104363]
[1646349539151,0.20971452,42590.0,42581.0,0.2049]
[1646349539746,0.20971452,42590.0,42581.0,0.1999]
[1646349540146,0.16317254,42583.0,42581.0,0.1999]
[1646349540348,0.16317254,42583.0,42577.0,0.20461695]
[1646349540349,0.16217254,42583.0,42577.0,0.20461695]
[1646349540747,0.16217254,42583.0,42576.0,0.004]
[1646349541149,0.23202454,42579.0,42576.0,0.004]
[1646349541836,0.23202454,42579.0,42573.0,0.01174]
[1646349542533,0.3,42582.0,42573.0,0.01174]
[1646349542734,0.16217254,42583.0,42573.0,0.15998064]
[1646349543536,0.22089824,42585.0,42573.0,0.15998064]
[1646349543537,0.0472,42585.0,42573.0,0.15998064]
[1646349543836,0.0472,42585.0,42573.0,0.39137853]
[1646349544439,0.0472,42585.0,42580.0,0.19480997]
[1646349544637,0.0472,42585.0,42580.0,0.16030153]
[1646349545552,0.31174,42590.0,42580.0,0.16030153]
[1646349545750,0.31174,42590.0,42582.0,0.20344448]
[1646349545751,0.01174,42590.0,42582.0,0.20344448]
[1646349545949,0.01174,42592.0,42582.0,0.20344448]
[1646349546154,0.19350071,42591.0,42580.0,0.16030153]
[1646349546349,0.24488279,42589.0,42580.0,0.16030153]
[1646349546549,0.19350071,42591.0,42580.0,0.36938172]
[1646349547152,0.002,42592.0,42589.0,0.17584851]
[1646349547951,0.24684712,42597.0,42583.0,0.14824064]
[1646349548151,0.24684712,42597.0,42591.0,0.18138372]
[1646349549204,0.21699438,42596.0,42591.0,0.18138372]
[1646349549409,0.23511712,42597.0,42591.0,0.18138372]
[1646349550007,0.18686157,42598.0,42591.0,0.18138372]
[1646349550408,0.16931745,42596.0,42591.0,0.18138372]
[1646349550607,0.16931745,42596.0,42586.0,0.27314064]
[1646349551709,0.16931745,42596.0,42589.0,0.18416145]
[1646349552311,0.16931745,42596.0,42586.0,0.1229]
[1646349553048,0.16931745,42596.0,42584.0,0.002]
[1646349553049,0.19281745,42596.0,42584.0,0.002]
[1646349553250,0.38298054,42587.0,42584.0,0.002]
[1646349553449,0.359086,42585.0,42584.0,0.002]
[1646349553651,0.3,42586.0,42584.0,0.002]
[1646349553850,0.3,42586.0,42576.0,0.14824064]
[1646349554150,0.38298054,42587.0,42576.0,0.14824064]
[1646349554350,0.38298054,42587.0,42581.0,0.21877176]
[1646349554550,0.0472,42591.0,42581.0,0.21877176]
[1646349554952,0.3,42590.0,42581.0,0.21877176]
[1646349555150,0.0472,42591.0,42581.0,0.21877176]
[1646349555353,0.0472,42591.0,42584.0,0.18113021]
[1646349555553,0.22089131,42600.0,42584.0,0.18113021]
[1646349555554,0.24133088,42592.0,42589.0,0.20912233]
[1646349555952,0.01173,42595.0,42589.0,0.20912233]
[1646349556552,0.18107513,42596.0,42589.0,0.20912233]
[1646349556803,0.359086,42595.0,42589.0,0.20912233]
[1646349557400,0.24753169,42594.0,42589.0,0.20912233]
[1646349557798,0.18107513,42596.0,42589.0,0.20912233]
[1646349557998,0.0021,42598.0,42589.0,0.20912233]
[1646349558200,0.0021,42598.0,42589.0,0.35736297]
[1646349558599,0.0021,42598.0,42589.0,0.35936297]
[1646349558800,0.0021,42598.0,42590.0,0.23449564]
[1646349559000,0.20532179,42598.0,42592.0,0.21530864]
[1646349559199,0.20532179,42598.0,42589.0,0.35936297]
[1646349560004,0.20532179,42598.0,42590.0,0.21913499]
[1646349560301,0.20532179,42598.0,42591.0,0.18985475]
[1646349561345,0.0021,42598.0,42591.0,0.18985475]
[1646349562547,0.0021,42598.0,42591.0,0.19285475]
[1646349562745,0.0021,42598.0,42597.0,0.15840698]
[1646349563147,0.0021,42598.0,42592.0,0.26624064]
[1646349563346,0.0021,42598.0,42592.0,0.118]
[1646349564200,0.0021,42598.0,42594.0,0.17626788]
[1646349566201,0.0021,42598.0,42592.0,0.118]
[1646349566402,0.0021,42598.0,42590.0,0.14824064]
[1646349566603,0.0021,42598.0,42589.0,0.004]
[1646349567301,0.21479889,42594.0,42589.0,0.004]
[1646349567704,0.20979889,42594.0,42591.0,0.14824064]
[1646349568150,0.0021,42598.0,42591.0,0.14824064]
[1646349568551,0.0021,42598.0,42591.0,0.15024064]
[1646349568950,0.0021,42598.0,42591.0,0.002]
[1646349569152,0.0021,42598.0,42591.0,0.15024064]
[1646349569954,0.0021,42598.0,42591.0,0.14824064]
[1646349570553,0.0021,42598.0,42591.0,0.15024064]
[1646349571696,0.0021,42598.0,42591.0,0.20897064]
[1646349571896,0.0021,42598.0,42591.0,0.20697064]
[1646349572696,0.0021,42598.0,42591.0,0.20897064]
[1646349573300,0.0021,42598.0,42591.0,0.15024064]
[1646349573700,0.19036274,42596.0,42591.0,0.15024064]
[1646349573899,0.0021,42598.0,42591.0,0.15024064]
[1646349574101,0.0021,42598.0,42591.0,0.14824064]
[1646349575100,0.20684432,42596.0,42591.0,0.14824064]
[1646349575451,0.20909888,42592.0,42591.0,0.14824064]
[1646349575650,0.49409888,42592.0,42588.0,0.1246]
[1646349575852,0.49409888,42592.0,42587.0,0.2499]
[1646349575853,0.19409888,42592.0,42587.0,0.2499]
[1646349576051,0.28702519,42588.0,42587.0,0.2499]
[1646349576254,0.19409888,42592.0,42587.0,0.11057094]
[1646349576449,0.19409888,42592.0,42583.0,0.31991301]
[1646349576650,0.19409888,42592.0,42583.0,0.51576886]
[1646349577254,0.20684432,42596.0,42583.0,0.51576886]
[1646349577255,0.22404308,42595.0,42585.0,0.22809399]
[1646349577451,0.0021,42598.0,42585.0,0.22809399]
[1646349577651,0.0021,42598.0,42586.0,0.14824064]
[1646349577852,0.0245,42602.0,42587.0,0.3]
[1646349577853,0.0235,42602.0,42587.0,0.3]
[1646349578053,0.00504,42601.0,42587.0,0.3]
[1646349578257,0.18309917,42600.0,42592.0,0.19382886]
[1646349578452,0.11554,42603.0,42596.0,0.16841578]
[1646349578651,0.0021,42605.0,42593.0,0.3]
[1646349578850,0.0021,42605.0,42592.0,0.3420695]
[1646349579299,0.359086,42604.0,42598.0,0.0259]
[1646349579500,0.20221404,42603.0,42598.0,0.0259]
[1646349579700,0.57759504,42602.0,42598.0,0.0259]
[1646349579902,0.359086,42602.0,42598.0,0.0259]
[1646349580803,0.20221404,42603.0,42598.0,0.0259]
[1646349581002,0.359086,42602.0,42598.0,0.0259]